[Event "FIDE Grand Swiss 2023"]
[Site "Villa Marina, Douglas, Isle of Man"]
[Date "2023.10.27"]
[Round "3.20"]
[White "Nakamura, Hikaru"]
[Black "Aryan, Chopra"]
[Result "1-0"]
[WhiteElo "2780"]
[BlackElo "2634"]
[EventDate "2023.10.25"]
[ECO "D45"]
[PlyCount "97"]
[BlackFideId "5084423"]
[TimeControl "40/100 + 20/50 + 15 + 30s/move"]
[WhiteFideId "2016192"]

1.d4 {[%clk 01:40:51] [%emt 00:00:07]} 1...d5 {[%clk 01:40:52] [%emt 00:00:08]} 
2.c4 {[%clk 01:41:03] [%emt 00:00:18]} 2...c6 {[%clk 01:41:16] [%emt 00:00:06]} 
3.Nf3 {[%clk 01:41:18] [%emt 00:00:15]} 3...Nf6 {[%clk 01:41:40] [%emt
00:00:06]} 4.Nc3 {[%clk 01:41:44] [%emt 00:00:04]} 4...e6 {[%clk 01:42:05] [%emt
00:00:05]} 5.e3 {[%clk 01:41:59] [%emt 00:00:15]} 5...Nbd7 {[%clk 01:42:26]
[%emt 00:00:08]} 6.Be2 {[%clk 01:42:15] [%emt 00:00:15]} 6...Bd6 {[%clk
01:41:24] [%emt 00:01:32]} 7.O-O {[%clk 01:41:56] [%emt 00:00:49]} 7...O-O 
{[%clk 01:41:41] [%emt 00:00:14]} 8.b3 {[%clk 01:42:22] [%emt 00:00:04]} 8...b6 
{[%clk 01:41:25] [%emt 00:00:46]} 9.Bb2 {[%clk 01:42:40] [%emt 00:00:11]} 
9...Bb7 {[%clk 01:41:50] [%emt 00:00:05]} 10.Bd3 {[%clk 01:43:06] [%emt
00:00:04]} 10...Qe7 {[%clk 01:40:00] [%emt 00:02:20]} 11.Rc1 {[%clk 01:42:28]
[%emt 00:01:08]} 11...Rac8 {[%clk 01:37:03] [%emt 00:03:28]} 12.Re1 {[%clk
01:39:59] [%emt 00:02:59]} 12...Bb4 {[%clk 01:27:45] [%emt 00:09:49]} 13.Nd2 
{[%clk 01:32:29] [%emt 00:07:58]} 13...e5 {[%clk 01:17:26] [%emt 00:10:50]} 
14.Bf5 {[%clk 01:30:06] [%emt 00:02:53]} 14...exd4 {[%clk 01:05:23] [%emt
00:12:33]} 15.exd4 {[%clk 01:29:18] [%emt 00:01:18]} 15...Qd8 {[%clk 01:05:49]
[%emt 00:00:04]} 16.c5 {[%clk 01:19:59] [%emt 00:09:49]} 16...g6 {[%clk
00:48:42] [%emt 00:17:37]} 17.Bh3 {[%clk 01:19:51] [%emt 00:00:38]} 17...Nh5 
{[%clk 00:47:04] [%emt 00:02:08]} 18.g3 {[%clk 01:16:08] [%emt 00:04:13]} 
18...bxc5 {[%clk 00:34:10] [%emt 00:13:24]} 19.dxc5 {[%clk 01:06:10] [%emt
00:10:28]} 19...Bxc5 {[%clk 00:34:30] [%emt 00:00:09]} 20.Na4 {[%clk 01:06:35]
[%emt 00:00:06]} 20...Be7 {[%clk 00:33:02] [%emt 00:01:58]} 21.Bxd7 {[%clk
01:05:22] [%emt 00:01:42]} 21...Qxd7 {[%clk 00:31:21] [%emt 00:02:12]} 22.Ne4 
{[%clk 01:05:49] [%emt 00:00:03]} 22...f6 {[%clk 00:27:29] [%emt 00:04:23]} 
23.Nec5 {[%clk 00:51:40] [%emt 00:14:38]} 23...Bxc5 {[%clk 00:27:53] [%emt
00:00:06]} 24.Nxc5 {[%clk 00:52:08] [%emt 00:00:02]} 24...Qf7 {[%clk 00:28:16]
[%emt 00:00:07]} 25.Qd4 {[%clk 00:52:02] [%emt 00:00:36]} 25...Ng7 {[%clk
00:26:59] [%emt 00:01:47]} 26.Qa4 {[%clk 00:49:51] [%emt 00:02:42]} 26...Ba8 
{[%clk 00:22:14] [%emt 00:05:14]} 27.Re2 {[%clk 00:48:39] [%emt 00:01:42]} 
27...Rfe8 {[%clk 00:21:01] [%emt 00:01:44]} 28.Rce1 {[%clk 00:44:43] [%emt
00:04:25]} 28...Rxe2 {[%clk 00:20:30] [%emt 00:01:01]} 29.Rxe2 {[%clk 00:45:09]
[%emt 00:00:05]} 29...Re8 {[%clk 00:20:49] [%emt 00:00:10]} 30.Rxe8+ {[%clk
00:43:58] [%emt 00:01:41]} 30...Nxe8 {[%clk 00:21:14] [%emt 00:00:05]} 31.Qf4 
{[%clk 00:44:23] [%emt 00:00:05]} 31...Qe7 {[%clk 00:20:20] [%emt 00:01:24]} 
32.b4 {[%clk 00:44:52] [%emt 00:00:01]} 32...Bb7 {[%clk 00:10:39] [%emt
00:10:11]} 33.h3 {[%clk 00:41:19] [%emt 00:04:04]} 33...Bc8 {[%clk 00:10:13]
[%emt 00:00:56]} 34.Kg2 {[%clk 00:41:48]} 34...Bf5 {[%clk 00:09:30] [%emt
00:01:13]} 35.Bd4 {[%clk 00:40:19] [%emt 00:01:59]} 35...Nd6 {[%clk 00:07:01]
[%emt 00:02:59]} 36.g4 {[%clk 00:38:41] [%emt 00:02:09]} 36...g5 {[%clk
00:07:13] [%emt 00:00:17]} 37.Qf3 {[%clk 00:39:07] [%emt 00:00:03]} 37...Be4 
{[%clk 00:07:10] [%emt 00:00:33]} 38.Nxe4 {[%clk 00:39:09] [%emt 00:00:29]} 
38...Nxe4 {[%clk 00:07:22] [%emt 00:00:18]} 39.Qa3 {[%clk 00:39:37] [%emt
00:00:01]} 39...a6 {[%clk 00:05:03] [%emt 00:02:49]} 40.f3 {[%clk 00:35:14]
[%emt 00:04:53]} 40...Nd2 {[%clk 00:01:25] [%emt 00:04:08]} 41.Qxa6 {[%clk
00:35:38] [%emt 00:00:06]} 41...Qxb4 {[%clk 00:25:57] [%emt 00:25:59]} 42.Qd3 
{[%clk 01:25:16] [%emt 00:00:51]} 42...Nc4 {[%clk 00:26:16] [%emt 00:00:11]} 
43.Bxf6 {[%clk 01:25:40] [%emt 00:00:06]} 43...Qb6 {[%clk 00:19:28] [%emt
00:07:18]} 44.a4 {[%clk 01:15:48] [%emt 00:10:22]} 44...Qa7 {[%clk 00:16:04]
[%emt 00:03:55]} 45.Bxg5 {[%clk 01:15:02] [%emt 00:01:15]} 45...Qxa4 {[%clk
00:15:18] [%emt 00:01:16]} 46.Qe2 {[%clk 01:14:12] [%emt 00:01:20]} 46...Qa7 
{[%clk 00:11:12] [%emt 00:04:37]} 47.Qe8+ {[%clk 01:09:51] [%emt 00:04:51]} 
47...Kg7 {[%clk 00:11:38] [%emt 00:00:04]} 48.Qe6 {[%clk 00:59:57] [%emt
00:10:24]} 48...h5 {[%clk 00:11:54] [%emt 00:00:13]} 49.gxh5 {[%clk 01:00:12]
[%emt 00:00:15]} 1-0

[Event "FIDE Grand Swiss 2023"]
[Site "Villa Marina, Douglas, Isle of Man"]
[Date "2023.10.27"]
[Round "3.21"]
[White "Pichot, Alan"]
[Black "Gukesh, D"]
[Result "1/2-1/2"]
[WhiteElo "2650"]
[BlackElo "2758"]
[EventDate "2023.10.25"]
[ECO "B33"]
[PlyCount "72"]
[BlackFideId "46616543"]
[TimeControl "40/100 + 20/50 + 15 + 30s/move"]
[WhiteFideId "110973"]

1.e4 {[%clk 01:40:56] [%emt 00:00:02]} 1...c5 {[%clk 01:40:54] [%emt 00:00:07]} 
2.Nf3 {[%clk 01:41:19] [%emt 00:00:06]} 2...Nc6 {[%clk 01:41:05] [%emt
00:00:20]} 3.d4 {[%clk 01:41:36] [%emt 00:00:13]} 3...cxd4 {[%clk 01:41:28]
[%emt 00:00:07]} 4.Nxd4 {[%clk 01:42:00] [%emt 00:00:06]} 4...Nf6 {[%clk
01:41:00] [%emt 00:00:58]} 5.Nc3 {[%clk 01:42:22] [%emt 00:00:07]} 5...e5 
{[%clk 01:41:02] [%emt 00:00:28]} 6.Ndb5 {[%clk 01:42:45] [%emt 00:00:07]} 
6...d6 {[%clk 01:41:26] [%emt 00:00:07]} 7.Nd5 {[%clk 01:42:37] [%emt 00:00:38]} 
7...Nxd5 {[%clk 01:41:49] [%emt 00:00:08]} 8.exd5 {[%clk 01:43:01] [%emt
00:00:05]} 8...Nb8 {[%clk 01:42:13] [%emt 00:00:05]} 9.c4 {[%clk 01:43:04] [%emt
00:00:27]} 9...a6 {[%clk 01:41:48] [%emt 00:00:56]} 10.Qa4 {[%clk 01:42:26]
[%emt 00:01:08]} 10...Nd7 {[%clk 01:42:11] [%emt 00:00:07]} 11.c5 {[%clk
01:42:13] [%emt 00:00:43]} 11...dxc5 {[%clk 01:42:30] [%emt 00:00:11]} 12.d6 
{[%clk 01:42:34] [%emt 00:00:08]} 12...axb5 {[%clk 01:42:55] [%emt 00:00:06]} 
13.Qxa8 {[%clk 01:42:58] [%emt 00:00:05]} 13...Bxd6 {[%clk 01:43:20] [%emt
00:00:05]} 14.Bxb5 {[%clk 01:41:57] [%emt 00:01:31]} 14...O-O {[%clk 01:43:43]
[%emt 00:00:08]} 15.O-O {[%clk 01:39:47] [%emt 00:02:40]} 15...e4 {[%clk
01:44:06] [%emt 00:00:06]} 16.Qa4 {[%clk 01:30:22] [%emt 00:09:55]} 16...Nf6 
{[%clk 01:44:17] [%emt 00:00:20]} 17.Be2 {[%clk 01:29:18] [%emt 00:01:34]} 
17...Qe7 {[%clk 01:43:15] [%emt 00:01:31]} 18.Rd1 {[%clk 01:27:50] [%emt
00:01:58]} 18...Bb8 {[%clk 01:15:54] [%emt 00:27:51]} 19.Be3 {[%clk 00:53:26]
[%emt 00:34:54]} 19...Ng4 {[%clk 00:42:23] [%emt 00:34:02]} 20.Bxg4 {[%clk
00:51:07] [%emt 00:02:49]} 20...Bxg4 {[%clk 00:42:47] [%emt 00:00:05]} 21.Rd5 
{[%clk 00:46:42] [%emt 00:04:56]} 21...b6 {[%clk 00:41:08] [%emt 00:02:09]} 
22.h3 {[%clk 00:30:13] [%emt 00:16:59]} 22...Be6 {[%clk 00:28:26] [%emt
00:13:12]} 23.Qxe4 {[%clk 00:30:27] [%emt 00:00:15]} 23...f5 {[%clk 00:28:02]
[%emt 00:00:55]} 24.Qf3 {[%clk 00:28:26] [%emt 00:02:31]} 24...f4 {[%clk
00:25:47] [%emt 00:02:45]} 25.Bd2 {[%clk 00:27:01] [%emt 00:01:55]} 25...Bxd5 
{[%clk 00:26:06] [%emt 00:00:11]} 26.Qxd5+ {[%clk 00:27:25] [%emt 00:00:05]} 
26...Qf7 {[%clk 00:26:33] [%emt 00:00:03]} 27.Qxf7+ {[%clk 00:23:47] [%emt
00:04:09]} 27...Kxf7 {[%clk 00:27:01] [%emt 00:00:02]} 28.Bc3 {[%clk 00:23:40]
[%emt 00:00:36]} 28...Rd8 {[%clk 00:22:39] [%emt 00:04:53]} 29.a4 {[%clk
00:21:56] [%emt 00:02:14]} 29...g6 {[%clk 00:20:14] [%emt 00:02:55]} 30.Kf1 
{[%clk 00:21:57] [%emt 00:00:29]} 30...Bc7 {[%clk 00:19:46] [%emt 00:00:58]} 
31.Re1 {[%clk 00:18:38] [%emt 00:03:49]} 31...h5 {[%clk 00:19:40] [%emt
00:00:36]} 32.Re4 {[%clk 00:13:30] [%emt 00:05:37]} 32...g5 {[%clk 00:19:09]
[%emt 00:01:02]} 33.Ke2 {[%clk 00:13:24] [%emt 00:00:36]} 33...Rd5 {[%clk
00:16:50] [%emt 00:02:49]} 34.b3 {[%clk 00:11:24] [%emt 00:02:30]} 34...Rd7 
{[%clk 00:13:15] [%emt 00:04:04]} 35.b4 {[%clk 00:10:12] [%emt 00:01:42]} 
35...cxb4 {[%clk 00:13:31] [%emt 00:00:15]} 36.Rxb4 {[%clk 00:09:27] [%emt
00:01:14]} 36...Rd5 {[%clk 00:13:11] [%emt 00:00:51]} 1/2-1/2

[Event "FIDE Grand Swiss 2023"]
[Site "Villa Marina, Douglas, Isle of Man"]
[Date "2023.10.27"]
[Round "3.22"]
[White "Praggnanandhaa, R"]
[Black "Sadhwani, Raunak"]
[Result "1/2-1/2"]
[WhiteElo "2738"]
[BlackElo "2641"]
[EventDate "2023.10.25"]
[ECO "E11"]
[PlyCount "80"]
[BlackFideId "35093487"]
[TimeControl "40/100 + 20/50 + 15 + 30s/move"]
[WhiteFideId "25059530"]

1.d4 {[%clk 01:40:01] [%emt 00:00:58]} 1...Nf6 {[%clk 01:40:45] [%emt 00:00:05]} 
2.c4 {[%clk 01:40:26] [%emt 00:00:16]} 2...e6 {[%clk 01:41:12] [%emt 00:00:03]} 
3.Nf3 {[%clk 01:40:49] [%emt 00:00:06]} 3...d5 {[%clk 01:41:39] [%emt 00:00:05]} 
4.g3 {[%clk 01:41:10] [%emt 00:00:08]} 4...Bb4+ {[%clk 01:42:03] [%emt
00:00:05]} 5.Bd2 {[%clk 01:41:34] [%emt 00:00:06]} 5...Be7 {[%clk 01:42:29]
[%emt 00:00:04]} 6.Bg2 {[%clk 01:41:59] [%emt 00:00:05]} 6...O-O {[%clk
01:42:50] [%emt 00:00:10]} 7.O-O {[%clk 01:42:22] [%emt 00:00:07]} 7...c6 
{[%clk 01:43:06] [%emt 00:00:14]} 8.b3 {[%clk 01:42:18] [%emt 00:00:33]} 
8...dxc4 {[%clk 01:29:03] [%emt 00:14:34]} 9.bxc4 {[%clk 01:41:57] [%emt
00:00:50]} 9...c5 {[%clk 01:29:28] [%emt 00:00:06]} 10.Bc3 {[%clk 01:28:53]
[%emt 00:13:33]} 10...Nc6 {[%clk 01:27:17] [%emt 00:02:41]} 11.e3 {[%clk
01:28:02] [%emt 00:01:22]} 11...Qc7 {[%clk 01:23:09] [%emt 00:04:37]} 12.Nbd2 
{[%clk 01:21:24] [%emt 00:07:08]} 12...b6 {[%clk 01:19:54] [%emt 00:03:44]} 
13.dxc5 {[%clk 01:09:19] [%emt 00:12:36]} 13...Bxc5 {[%clk 01:14:09] [%emt
00:06:16]} 14.Bxf6 {[%clk 01:00:33] [%emt 00:09:15]} 14...gxf6 {[%clk 01:14:34]
[%emt 00:00:05]} 15.Nd4 {[%clk 00:56:42] [%emt 00:04:21]} 15...Bb7 {[%clk
01:10:31] [%emt 00:04:34]} 16.Ne4 {[%clk 00:50:13] [%emt 00:06:58]} 16...f5 
{[%clk 01:08:01] [%emt 00:03:00]} 17.Nxc5 {[%clk 00:48:17] [%emt 00:02:27]} 
17...bxc5 {[%clk 01:08:26] [%emt 00:00:05]} 18.Nb5 {[%clk 00:47:24] [%emt
00:01:23]} 18...Qe7 {[%clk 01:08:22] [%emt 00:00:33]} 19.Qd6 {[%clk 00:42:06]
[%emt 00:05:48]} 19...Rab8 {[%clk 01:08:19] [%emt 00:00:34]} 20.Qf4 {[%clk
00:40:31] [%emt 00:02:04]} 20...Na5 {[%clk 01:04:11] [%emt 00:04:39]} 21.Bxb7 
{[%clk 00:38:22] [%emt 00:02:39]} 21...Rxb7 {[%clk 01:04:25] [%emt 00:00:16]} 
22.e4 {[%clk 00:30:15] [%emt 00:08:36]} 22...fxe4 {[%clk 01:01:55] [%emt
00:03:01]} 23.Qxe4 {[%clk 00:30:28] [%emt 00:00:16]} 23...a6 {[%clk 00:59:48]
[%emt 00:02:38]} 24.Nc3 {[%clk 00:30:47] [%emt 00:00:11]} 24...Qf6 {[%clk
00:59:45] [%emt 00:00:32]} 25.Rac1 {[%clk 00:28:48] [%emt 00:02:29]} 25...Rb4 
{[%clk 00:52:47] [%emt 00:07:29]} 26.Ne2 {[%clk 00:27:23] [%emt 00:01:56]} 
26...Rb2 {[%clk 00:51:38] [%emt 00:01:39]} 27.Rc2 {[%clk 00:22:21] [%emt
00:05:32]} 27...Rxc2 {[%clk 00:50:24] [%emt 00:01:44]} 28.Qxc2 {[%clk 00:22:49]
[%emt 00:00:02]} 28...Nc6 {[%clk 00:50:16] [%emt 00:00:38]} 29.Qe4 {[%clk
00:19:45] [%emt 00:03:33]} 29...Nd4 {[%clk 00:49:12] [%emt 00:01:35]} 30.Nxd4 
{[%clk 00:17:53] [%emt 00:02:20]} 30...Qxd4 {[%clk 00:49:37] [%emt 00:00:06]} 
31.Qe2 {[%clk 00:16:26] [%emt 00:01:56]} 31...Rd8 {[%clk 00:49:22] [%emt
00:00:47]} 32.Rb1 {[%clk 00:16:35] [%emt 00:00:20]} 32...Qd3 {[%clk 00:49:39]
[%emt 00:00:13]} 33.Qxd3 {[%clk 00:15:30] [%emt 00:01:36]} 33...Rxd3 {[%clk
00:50:03] [%emt 00:00:05]} 34.Rb8+ {[%clk 00:15:56] [%emt 00:00:04]} 34...Kg7 
{[%clk 00:50:29] [%emt 00:00:05]} 35.Rc8 {[%clk 00:16:23] [%emt 00:00:02]} 
35...Ra3 {[%clk 00:50:54] [%emt 00:00:05]} 36.Rxc5 {[%clk 00:16:49] [%emt
00:00:04]} 36...Rxa2 {[%clk 00:51:21] [%emt 00:00:03]} 37.Rc7 {[%clk 00:17:15]
[%emt 00:00:04]} 37...a5 {[%clk 00:51:46] [%emt 00:00:05]} 38.c5 {[%clk
00:17:41] [%emt 00:00:03]} 38...a4 {[%clk 00:52:10] [%emt 00:00:08]} 39.Ra7 
{[%clk 00:18:05] [%emt 00:00:05]} 39...Rc2 {[%clk 00:52:36] [%emt 00:00:03]} 
40.Rxa4 {[%clk 00:18:32] [%emt 00:00:03]} 40...Rxc5 {[%clk 00:53:02] [%emt
00:00:04]} 1/2-1/2

[Event "FIDE Grand Swiss 2023"]
[Site "Villa Marina, Douglas, Isle of Man"]
[Date "2023.10.27"]
[Round "3.23"]
[White "Ponomariov, Ruslan"]
[Black "Vachier-Lagrave, Maxime"]
[Result "1/2-1/2"]
[WhiteElo "2641"]
[BlackElo "2727"]
[EventDate "2023.10.25"]
[ECO "D27"]
[PlyCount "61"]
[BlackFideId "623539"]
[TimeControl "40/100 + 20/50 + 15 + 30s/move"]
[WhiteFideId "14103320"]

1.Nf3 {[%clk 01:40:56] [%emt 00:00:03]} 1...d5 {[%clk 01:38:07] [%emt 00:02:54]} 
2.d4 {[%clk 01:40:28] [%emt 00:00:58]} 2...Nf6 {[%clk 01:38:20] [%emt 00:00:16]} 
3.c4 {[%clk 01:40:39] [%emt 00:00:19]} 3...dxc4 {[%clk 01:33:36] [%emt
00:05:15]} 4.e3 {[%clk 01:39:29] [%emt 00:01:40]} 4...e6 {[%clk 01:34:02] [%emt
00:00:04]} 5.Bxc4 {[%clk 01:39:51] [%emt 00:00:08]} 5...c5 {[%clk 01:34:30]
[%emt 00:00:02]} 6.O-O {[%clk 01:39:59] [%emt 00:00:22]} 6...a6 {[%clk 01:34:36]
[%emt 00:00:23]} 7.Re1 {[%clk 01:39:16] [%emt 00:01:13]} 7...Be7 {[%clk
01:34:33] [%emt 00:00:33]} 8.e4 {[%clk 01:36:52] [%emt 00:02:54]} 8...b5 {[%clk
01:31:52] [%emt 00:03:12]} 9.Bf1 {[%clk 01:36:19] [%emt 00:01:02]} 9...Bb7 
{[%clk 01:29:38] [%emt 00:02:45]} 10.e5 {[%clk 01:34:51] [%emt 00:01:57]} 
10...Nd5 {[%clk 01:27:11] [%emt 00:02:58]} 11.a4 {[%clk 01:16:59] [%emt
00:18:22]} 11...Qb6 {[%clk 01:15:15] [%emt 00:12:26]} 12.Bg5 {[%clk 01:09:14]
[%emt 00:08:15]} 12...Nd7 {[%clk 01:14:18] [%emt 00:01:27]} 13.Bxe7 {[%clk
01:01:45] [%emt 00:07:59]} 13...Kxe7 {[%clk 01:12:17] [%emt 00:02:32]} 14.Nbd2 
{[%clk 00:57:55] [%emt 00:04:19]} 14...cxd4 {[%clk 01:10:23] [%emt 00:02:24]} 
15.Nb3 {[%clk 00:51:58] [%emt 00:06:28]} 15...Rhd8 {[%clk 00:54:45] [%emt
00:16:08]} 16.axb5 {[%clk 00:41:47] [%emt 00:10:40]} 16...axb5 {[%clk 00:55:04]
[%emt 00:00:12]} 17.Rxa8 {[%clk 00:41:20] [%emt 00:00:57]} 17...Bxa8 {[%clk
00:55:24] [%emt 00:00:10]} 18.Nfxd4 {[%clk 00:41:10] [%emt 00:00:40]} 18...b4 
{[%clk 00:50:35] [%emt 00:05:19]} 19.Qc2 {[%clk 00:39:41] [%emt 00:01:59]} 
19...g6 {[%clk 00:46:53] [%emt 00:04:11]} 20.Qc1 {[%clk 00:23:44] [%emt
00:16:27]} 20...Kf8 {[%clk 00:46:49] [%emt 00:00:35]} 21.h4 {[%clk 00:23:59]
[%emt 00:00:15]} 21...Ne7 {[%clk 00:40:34] [%emt 00:06:45]} 22.Qh6+ {[%clk
00:22:34] [%emt 00:01:54]} 22...Kg8 {[%clk 00:40:15] [%emt 00:00:49]} 23.Qg5 
{[%clk 00:21:50] [%emt 00:01:15]} 23...Re8 {[%clk 00:36:13] [%emt 00:04:32]} 
24.Bb5 {[%clk 00:16:13] [%emt 00:06:07]} 24...Bc6 {[%clk 00:36:13] [%emt
00:00:30]} 25.Bxc6 {[%clk 00:13:18] [%emt 00:03:25]} 25...Nxc6 {[%clk 00:36:28]
[%emt 00:00:15]} 26.Nf3 {[%clk 00:13:34] [%emt 00:00:14]} 26...Kg7 {[%clk
00:34:48] [%emt 00:02:10]} 27.Qf4 {[%clk 00:10:59] [%emt 00:03:04]} 27...Ne7 
{[%clk 00:34:04] [%emt 00:01:15]} 28.h5 {[%clk 00:08:10] [%emt 00:03:19]} 
28...gxh5 {[%clk 00:32:07] [%emt 00:02:27]} 29.Qg5+ {[%clk 00:07:14] [%emt
00:01:25]} 29...Ng6 {[%clk 00:32:09] [%emt 00:00:29]} 30.Qxh5 {[%clk 00:07:36]
[%emt 00:00:08]} 30...Rc8 {[%clk 00:31:19] [%emt 00:01:20]} 31.Nbd4 {[%clk
00:05:59] [%emt 00:02:07]} 1/2-1/2